Cogmind - Beta 9.5 @@@ ROGUE MODE // 2020.04.06 @ 15:32:23 Player: Barleymor Result: Destroyed by Y-45 Defender with Beam Rifle Performance ------------- Evolutions (1) 500 Regions Visited (3) 600 Robots Destroyed (28) 140 Value Destroyed (653) 653 Prototype IDs (0) 0 Alien Tech Used (0) 0 Bonus (0) 0 TOTAL SCORE: 1893 Bonus ------- None Cogmind --------- Core Integrity 0/400 Matter 278/300 Energy 189/250 System Corruption 0% Temperature Cool (9) Movement Core (150) Ox2 Location -9/Storage Parts ------- > --- POWER (1) -------- Ion Engine > --- PROPULSION (3) --- (None) > --- UTILITY (3) ------ Small Storage Unit > --- WEAPON (2) ------- (None) > --- INVENTORY (6) ---- Light Ion Engine Aluminum Leg Aluminum Leg Particle Charger Field Recycling Unit (0) Peak State ------------ > --- POWER ------------ Ion Engine > --- PROPULSION ------- Aluminum Leg Aluminum Leg Aluminum Leg > --- UTILITY ---------- Small Storage Unit Targeting Computer Core Shielding > --- WEAPON ----------- EM Pulse Cannon Light Assault Rifle > --- INVENTORY -------- Aluminum Leg Aluminum Leg Particle Charger Field Recycling Unit EM Pulse Cannon [Rating: 12] Favorites ----------- Power Ion Engine Engine Ion Engine Propulsion Aluminum Leg Leg Aluminum Leg Utility Small Storage Unit Storage Small Storage Unit Processor Targeting Computer Protection Core Shielding Weapon Light Assault Rifle Energy Gun Medium Laser Energy Cannon EM Pulse Cannon Ballistic Gun Light Assault Rifle Launcher Grenade Launcher Build | -11 -10 -9 -9 ------- Run | Scr Mat Mat Sto Slots Evolved 2 | . . 2 . Power . | . . . . Propulsion 1 | . . 1 . Utility 1 | . . 1 . Weapon . | . . . . Parts Attached 22 | 6 6 4 6 Power 3 | 1 1 . 1 Engine 3 | 1 1 . 1 Core . | . . . . Reactor . | . . . . Propulsion 6 | 2 2 1 1 Treads . | . . . . Leg 6 | 2 2 1 1 Wheel . | . . . . Hover . | . . . . Flight . | . . . . Utility 4 | 1 1 2 . Device . | . . . . Storage 1 | 1 . . . Processor 1 | . . 1 . Hackware . | . . . . Protection 2 | . 1 1 . Artifact . | . . . . Weapon 9 | 2 2 1 4 Energy Gun 1 | 1 . . . Energy Cannon 4 | . . 1 3 Ballistic Gun 3 | 1 1 . 1 Ballistic Cannon . | . . . . Launcher 1 | . 1 . . Special Weapon . | . . . . Impact Weapon . | . . . . Slashing Weapon . | . . . . Piercing Weapon . | . . . . Special Melee Weapon . | . . . . Unidentified Prototypes . | . . . . Parts Lost 13 | . 2 2 9 Power 2 | . 1 1 . Propulsion 3 | . . . 3 Utility 2 | . . . 2 Weapon 6 | . 1 1 4 Highest Loss Streak 9 | . 2 1 9 Average Slot Usage (%) 88 | . 97 95 65 Engine 8 | . 14 7 2 Leg 28 | . 28 33 22 Storage 12 | . 14 11 11 Processor 6 | . . 11 8 Protection 10 | . 12 11 6 Energy Gun 2 | . 7 . . Energy Cannon 4 | . . 6 6 Ballistic Gun 10 | . 10 11 8 Launcher 4 | . 7 4 . Naked Turns . | . . . . Heaviest Build 19 | 12 15 19 15 Greatest Support 30 | 20 20 30 30 Greatest Overweight (x) 4 | 1 . . 4 Average Overweight (x) . | . . . . Largest Inventory Capacity 6 | 6 6 6 6 Average Capacity 5 | 5 6 6 6 Most Carried 6 | 4 6 6 6 Average Carried 4 | 2 3 5 5 Final Capacity 6 | 6 6 6 6 Final Carried 6 | 2 5 6 5 Class Distribution -------------------- 100% | Mutant Dominant Class ---------------- Mutant | -10/Materials Mutant | -9/Materials Mutant | -9/Storage Resources | -11 -10 -9 -9 ----------- Run | Scr Mat Mat Sto Matter Collected 550 | 239 72 170 69 Remotely . | . . . . Salvage Created 812 | . 252 317 243 Parts 70 | . 18 30 22 Haulers Intercepted 1 | . . 1 . Recyclers Shooed . | . . . . Parts Field Recycled . | . . . . Retrieved Matter . | . . . . Parts Self-Destructed . | . . . . Prevented . | . . . . Kills | -11 -10 -9 -9 ------- Run | Scr Mat Mat Sto Combat Hostiles Destroyed 19 | . 4 8 7 Guns 10 | . 1 3 6 Cannons 4 | . . 3 1 AOE 5 | . 3 2 . Classes Destroyed 8 | . 5 3 . Worker 1 | . 1 . . Builder 2 | . 2 . . Hauler 1 | . . 1 . Recycler 1 | . 1 . . Watcher 4 | . 1 3 . Swarmer 6 | . . 4 2 Grunt 11 | . 4 2 5 Sentry 2 | . . 2 . Best Kill Streak 8 | . 8 6 4 Combat Bots Only 5 | . 2 5 4 Max Kills in Single Turn 3 | . 3 2 1 Gunslinging . | . . . . Exploded 2 | . 2 1 . Melee . | . . . . Uniques/NPCs Destroyed . | . . . . Combat | -11 -10 -9 -9 -------- Run | Scr Mat Mat Sto Damage Taken 1691 | . 251 477 963 Core 414 | . . 84 330 Absorbed by Shields . | . . . . Core Remaining (%) 100 | 100 100 . . Volleys Fired 67 | . 9 28 30 Largest 2 | . 2 2 2 Hottest 83 | . 80 83 83 Shots Fired 101 | . 18 49 34 Gun 68 | . 12 28 28 Cannon 22 | . . 16 6 Launcher 11 | . 6 5 . Special . | . . . . Kinetic 59 | . 3 28 28 Thermal 9 | . 9 . . Explosive 11 | . 6 5 . Electromagnetic 22 | . . 16 6 Robot Hit Streak 12 | . 4 9 12 Robot Miss Streak 4 | . 2 4 2 Penetration Max . | . . . . Secondary Targets 1 | . . . 1 Max Gunslinging Chain 1 | . . . 1 Shots Hit Robots 74 | . 12 34 28 Core Hits 45 | . 12 22 11 Critical Hits 1 | . . 1 . Critical Kills . | . . . . Critical Parts Destroyed 1 | . . 1 . Melee Attacks . | . . . . Impact . | . . . . Slashing . | . . . . Piercing . | . . . . Sneak Attacks . | . . . . Combat Hostiles . | . . . . Follow-up Attacks . | . . . . Damage Inflicted 1536 | . 448 648 440 Guns 555 | . 70 161 324 Cannons 413 | . . 297 116 Explosions 568 | . 378 190 . Melee . | . . . . Ramming . | . . . . Kinetic 493 | . 8 161 324 Thermal 112 | . 112 . . Explosive 440 | . 250 190 . Electromagnetic 491 | . 78 297 116 Impact . | . . . . Slashing . | . . . . Piercing . | . . . . Highest Corruption . | . . . . Average Corruption . | . . . . Corruption Purged . | . . . . Overload Shots . | . . . . Overflow Damage 49 | . 44 2 3 Projectiles 5 | . . 2 3 Explosions 44 | . 44 . . Melee . | . . . . Knockbacks . | . . . . Impact . | . . . . Kinetic . | . . . . Secondary . | . . . . Self-Inflicted Damage 238 | . 201 37 . Shots 8 | . 6 2 . Rammed . | . . . . Targets Rammed . | . . . . Kicked . | . . . . Crushed . | . . . . Highest Temperature 222 | . 72 222 39 Average Temperature 55 | . 31 76 14 Received Heat Transfer 519 | . 30 114 375 Siege Activations . | . . . . Robots Corrupted . | . . . . Combat Hostiles . | . . . . Parts Fried 1 | . . 1 . Impact Corruptions . | . . . . Robots Melted . | . . . . Combat Hostiles . | . . . . Parts Melted 1 | . 1 . . Heat Transferred 235 | . 235 . . Parts Sabotaged . | . . . . Parts Stolen . | . . . . Parts Stripped . | . . . . Power Chain Reactions . | . . . . Missiles Intercepted . | . . . . Alert | -11 -10 -9 -9 ------- Run | Scr Mat Mat Sto Peak Influence 331 | . 163 331 274 Average Influence 159 | . 79 235 200 Maximum Alert Level 1 | . . 1 1 Low Security (%) 65 | 100 100 38 47 Level 1 34 | . . 61 52 Level 2 . | . . . . Level 3 . | . . . . Level 4 . | . . . . Level 5 . | . . . . High Security . | . . . . Max Security . | . . . . Squads Dispatched 3 | . . 1 2 Investigation 2 | . . . 2 Extermination . | . . . . Reinforcement 1 | . . 1 . Assault . | . . . . Garrison . | . . . . Intercept . | . . . . Construction Impeded . | . . . . Haulers Reinforced . | . . . . Stealth | -11 -10 -9 -9 --------- Run | Scr Mat Mat Sto Distress Signals 2 | . 1 . 1 Communications Jammed . | . . . . Distress Signals . | . . . . Times Spotted 37 | . 6 13 18 Peak Tracking Total 10 | . 2 5 10 Tactical Retreats 2 | . . 1 1 Traps | -11 -10 -9 -9 ------- Run | Scr Mat Mat Sto Traps Triggered 2 | . . . 2 Indirectly . | . . . . Trap Hack Attempts . | . . . . Triggered . | . . . . Disarmed . | . . . . Reprogrammed . | . . . . Reused . | . . . . Traps Extracted . | . . . . Installed . | . . . . Triggered . | . . . . Machines | -11 -10 -9 -9 ---------- Run | Scr Mat Mat Sto Machines Disabled 2 | . 2 . . Max in Single Turn 1 | . 1 . . Machines Sabotaged . | . . . . Garrisons Compromised . | . . . . Overloaded Fab Kills . | . . . . Fab Network Shutdowns . | . . . . Hacking | -11 -10 -9 -9 --------- Run | Scr Mat Mat Sto Machines Accessed 2 | . 1 . 1 Terminals 2 | . 1 . 1 Fabricators . | . . . . Repair Stations . | . . . . Recycling Units . | . . . . Scanalyzers . | . . . . Garrison Access . | . . . . Total Hacks 3 | . 2 . 1 Successful 2 | . 2 . . Failed 1 | . . . 1 Catastrophic 1 | . . . 1 Database Lockouts . | . . . . Manual . | . . . . Terminals 3 | . 2 . 1 Fabricators . | . . . . Repair Stations . | . . . . Recycling Units . | . . . . Scanalyzers . | . . . . Garrison Access . | . . . . Terminal Hacks 2 | . 2 . . Record 2 | . 2 . . Fabricator Hacks . | . . . . Repair Station Hacks . | . . . . Recycling Unit Hacks . | . . . . Scanalyzer . | . . . . Garrison Access Hacks . | . . . . Unauthorized Hacks . | . . . . Terminals . | . . . . Fabricators . | . . . . Repair Stations . | . . . . Recycling Units . | . . . . Scanalyzers . | . . . . Garrison Access . | . . . . Data Cores Recovered . | . . . . Used . | . . . . Hacking Detections . | . . . . Full Trace Events . | . . . . Feedback Events . | . . . . Feedback Blocked . | . . . . Robot Schematics Acquired . | . . . . Robots Built . | . . . . Matter . | . . . . Time . | . . . . Total Robot Build Rating . | . . . . Part Schematics Acquired . | . . . . Parts Built . | . . . . Matter . | . . . . Time . | . . . . Total Part Build Rating . | . . . . Parts Repaired . | . . . . Time . | . . . . Parts Recycled . | . . . . Recycled Matter . | . . . . Retrieved Matter . | . . . . Retrieved Components . | . . . . Parts Scanalyzed . | . . . . Part Schematics Acquired . | . . . . Parts Damaged . | . . . . Bothacking | -11 -10 -9 -9 ------------ Run | Scr Mat Mat Sto Used RIF Installer . | . . . . Robots Hacked . | . . . . Non-combat . | . . . . Combat . | . . . . Robot Hacks Applied . | . . . . Relay Couplers Released . | . . . . Robots Rewired . | . . . . Allies Hacked . | . . . . Hacks Repelled . | . . . . Allies | -11 -10 -9 -9 -------- Run | Scr Mat Mat Sto Total Allies . | . . . . Largest Group . | . . . . Highest-Rated Group . | . . . . Highest-Rated Ally . | . . . . Total Orders . | . . . . Ally Attacks . | . . . . Total Damage . | . . . . Kills . | . . . . Allies Corrupted . | . . . . Allies Melted . | . . . . Intel | -11 -10 -9 -9 ------- Run | Scr Mat Mat Sto Robot Analysis Total . | . . . . Derelict Logs Recovered . | . . . . Drone Launches . | . . . . Drone Recoveries . | . . . . Exploration | -11 -10 -9 -9 ------------- Run | Scr Mat Mat Sto Turns Passed 761 | 51 256 277 177 Spaces Moved 430 | 38 166 154 72 Core 21 | 13 . . 8 Treads . | . . . . Legs 409 | 25 166 154 64 Wheels . | . . . . Hover . | . . . . Flight . | . . . . Fastest Speed 50 | 50 120 120 120 Average Speed 120 | 101 120 120 132 Slowest Speed 250 | 120 120 120 250 Overloaded Moves . | . . . . Propulsion Burnouts . | . . . . Robots Hopped . | . . . . Cave-ins Triggered . | . . . . Exploration Rate (%) 17 | 3 26 18 22 Regions Visited 3 Branch Regions 1 Pre-discovered Areas . | . . . . Known Exits Taken . | . . . . Unknown Exits Taken 3 | 1 1 1 . Scrap Searched . | . . . . Spaces Dug . | . . . . Terrain Destroyed 100 | . 61 39 . Melee . | . . . . Projectile . | . . . . AOE 100 | . 61 39 . Actions | -11 -10 -9 -9 --------- Run | Scr Mat Mat Sto Total 578 | 49 205 203 121 Wait 35 | . 16 10 9 Move 427 | 37 165 153 72 Hop . | . . . . Pick Up 21 | 6 7 6 2 Fast Attach 2 | 2 . . . Attach 14 | 4 3 3 4 Detach 1 | . . . 1 Swap 6 | . 3 1 2 Drop 5 | . 2 2 1 Fire 67 | . 9 28 30 Melee . | . . . . Ram . | . . . . Kick . | . . . . Crush . | . . . . Escape Stasis . | . . . . Rewire . | . . . . Trap . | . . . . Miscellaneous . | . . . . Route ------- -11/Scrapyard -10/Materials (discovered 2 exits: [*Mat] / [*Min]) -9/Materials -9/Storage History --------- Turn | Location | Event 6 | -11/Scrapyard | Discovered new exit (range 15) 52 | -11/Scrapyard | Entered Materials 244 | -10/Materials | Discovered new exit (range 12) 244 | -10/Materials | Discovered new exit (range 12) 303 | -10/Materials | Build established: Mutant 308 | -10/Materials | Entered another Materials area 308 | -9/Materials | Evolved 2 slots: Propulsion x1, Utility x1 453 | -9/Materials | Discovered new exit (range 15) 585 | -9/Materials | Entered Storage 711 | -9/Storage | Core integrity fell below 50% 746 | -9/Storage | Core integrity fell below 20% 762 | -9/Storage | Destroyed by Y-45 Defender with Beam Rifle Last Messages --------------- 00728_ Acquired Ion Engine. 00728_ K-01 Serf collects debris. 00731_ Destroyed Flight Unit. 00732_ K-01 Serf collects debris. 00734_ EM Pulse Cannon destroyed. 00735_ K-01 Serf collects debris. 00741_ Acquired Lgt. Ion Engine. 00742_ Aluminum Leg destroyed. 00742_ Acquired 16 matter. 00743_ S-10 Pest IFF system glitched. 00754_ C-30 ARC bursts open, deploying its payload. 00754_ B-36 Bruiser unfolds itself. 00754_ G-34 Mercenary unfolds itself. 00754_ Triggered Alarm Trap. 00754_ An alarm sounds. 00754_ ALERT: Alarm triggered, dispatching investigation squad. 00757_ U-05 Engineer builds a Door. 00759_ EM Pulse Cannon destroyed. 00760_ R-06 Scavenger collects Heat Sink. 00761_ G-47 Trooper IFF system glitched. Map ----- +----------------------------------------------------+ | ?????????????????????????????????????????????????? | | ?????????????????????????????????????????????????? | | ?????????????????????????????????????????????????? | | ?????????????????????????????????????????????????? | | ?????????????????????????????????????????????????? | | ?????????????????????????????????????????????????? | | ?????????????????????????????????????????????????? | | ?????????????????????????????????????????????????? | | ?????????????????????????????????????????????????? | | ?????????????????????????????????????????????????? | | ?????????????????????????????????????????????????? | | ?????????????????????????????????????????????????? | | ?????????????????????????????????????????????????? | | ?????????????????????????????????????????????????? | | ?????????????????????????????????????????????????? | | ?????????????????????????????????????????????????? | | ?????????????????????????????????????????????????? | | ?????????????????????????????????????????????????? | | ?????????????????????????????????????????????????? | | ???????????????#+????????????????????????????????? | | ???????????????# ??????#######???????????????????? | | ???????????????# ??????#"""""#???????????????????? | | ??????? =!????# #######""T""####### ?????????? | | ???????? # g ????????? | | ??????????""" %+ gs gu ????????? | | ???????????????# grb Y @ ????????? | | ???????????????###/#g##### #####???????????????? | | ???????????????# =%= %# #???????????????????? | | ???????????????# ["""""%=# #???????????????????? | | ???????????????#[="???"*!# #???????????????????? | | ???????????????# !"??""* # #???????????????????? | | ???????????????# ""??" # #???????????????????? | | ?????########??# "???" *=# #???????????????????? | | ?????# #??# """"" [%# #???????????????????? | | ?????# #??# =+ #???????????????????? | | ###### #??########### #???????????????????? | | # # #????????????### #???????????????????? | | # # #??????????????# #???????????????????? | | # #? ??????????????## ##??????????????????? | | # ####+################# #??????????????????? | | # + T #??????????????????? | | # # ################# #??????????????????? | | # # #???????????????#####??????????????????? | | # # +??????????????????????????????????????? | | # # #??????????????????????????????????????? | | ###### #??????????????????????????????????????? | | # ! + +??????????????????????????????????????? | | # =# #??????????????????????????????????????? | | # # #??????????????????????????????????????? | | # # +??????????????????????????????????????? | +----------------------------------------------------+ Best States ------------- Heat Dissipation 28 Energy Generation 10 Energy Capacity 250 Matter Stores 300 Matter Capacity 300 Sight Range 16 Terrain Scan Density 10 Armor Coverage 150 Core Shielding 20 Evasion (%) 40 Targeting Accuracy 5 Item Schematics ----------------- None Robot Schematics ------------------ None Fabricated ------------ Nothing Alien Tech Used ----------------- None Achievements -------------- None Challenges ------------ None Game ------ Seed MagneticAlertFlamer Manual? 0 Play Time 00:16:17 Cumulative 9.0 hours Start 2020.04.06 @ 15:19:14 End 2020.04.06 @ 15:32:23 Sessions 1 Manual Loads 0 Difficulty Rogue Special Mode None Game No. 7 Rogue 7 Adventurer 0 Explorer 0 Win Type - Total 0 Types 0/0/0/0/0/0/0 Lore% 2 Gallery% 13 Achievement% 10 Wizard Run 0 Options --------- ASCII 0 Keyboard 0 Movement Numpad Keybinds 0 Fullscreen 1 Font 20/SmallcapsGlow Map View 66x50 Tactical HUD 1 Map Filters NONE Filters NONE Steam 1 RUN: a30fcd2a-3473-4e97-9c20-be69587683d4